Workbook

Sheet เคล็ดลับ
A1: เคล็ดลับเทมเพลต
A2: มีวิธีง่ายๆ ในการย้ายไปมาระหว่างแผ่นงานสรุปแนวโน้มค่าใช้จ่ายและรายละเอียดค่าใช้จ่ายรายเดือน
A3: เมื่อต้องการนำทางอย่างรวดเร็วไปยังค่าใช้จ่ายของเดือนที่ระบุ ให้คลิกลิงก์นำทางที่เกี่ยวข้องทางด้านบนของแผนภูมิ เช่น ลิงก์นำทาง ม.ค. ใน B2 จากนั้น เมื่อต้องการย้อนกลับไปยังเวิร์กชีตแนวโน้มค่าใช้จ่าย ให้คลิกลิงก์นำทาง สรุป ใน D1
A4: เมื่อต้องการย้อนกลับไปยังเวิร์กชีตเคล็ดลับนี้ ในเวิร์กชีตสรุป ให้เลือก N2 จากเวิร์กชีตของทุกเดือน ให้เลือก E1
A5: ฉันจะเพิ่มชนิดค่าใช้จ่ายใหม่ไปยังสรุปค่าใช้จ่ายหรือค่าใช้จ่ายรายเดือนใหม่ได้อย่างไร
A6: สรุปค่าใช้จ่ายด้านล่างของแผนภูมิและรายละเอียดค่าใช้จ่ายของแต่ละเดือนเป็นจะตาราง Excel เมื่อต้องการเพิ่มแถวใหม่ลงในตาราง Excel ให้ทำอย่างใดอย่างหนึ่งต่อไปนี้:
A7: =ROW(A1)&". ถ้าตารางไม่มีแถวผลรวม ให้เริ่มพิมพ์ด้านล่างตารางแล้วแถวจะขยายโดยอัตโนมัติเมื่อคุณกดปุ่ม Enter หรือ Tab" -> 1. ถ้าตารางไม่มีแถวผลรวม ให้เริ่มพิมพ์ด้านล่างตารางแล้วแถวจะขยายโดยอัตโนมัติเมื่อคุณกดปุ่ม Enter หรือ Tab
A8: =ROW(A2)&". วางตัวชี้เซลล์ในเซลล์สุดท้ายเหนือแถวผลรวม เช่น ผลรวมของรายจ่ายสุดท้าย จากนั้นกดปุ่ม Tab" -> 2. วางตัวชี้เซลล์ในเซลล์สุดท้ายเหนือแถวผลรวม เช่น ผลรวมของรายจ่ายสุดท้าย จากนั้นกดปุ่ม Tab
A9: =ROW(A3)&". คลิกขวาในตารางและบนเมนูป็อปอัพ ให้ชี้ไปที่แทรก จากนั้นคลิกแถวตารางด้านบน หรือแถวตารางด้านล่าง" -> 3. คลิกขวาในตารางและบนเมนูป็อปอัพ ให้ชี้ไปที่แทรก จากนั้นคลิกแถวตารางด้านบน หรือแถวตารางด้านล่าง
A10: =ROW(A4)&". ที่มุมขวาล่างของตาราง ให้วางเมาส์จุดจับปรับขนาดของตารางแล้วลากลงเพื่อเพิ่มจำนวนแถวในตารางที่พร้อมใช้งาน" -> 4. ที่มุมขวาล่างของตาราง ให้วางเมาส์จุดจับปรับขนาดของตารางแล้วลากลงเพื่อเพิ่มจำนวนแถวในตารางที่พร้อมใช้งาน
A11: ใส่ค่าใช้จ่ายในเวิร์กชีต สรุป ในตาราง สรุปค่าใช้จ่าย ในคอลัมน์ ค่าใช้จ่าย
A12: เพิ่มยอดค่าใช้จ่ายสำหรับค่าใช้จ่ายแต่ละชนิดในเวิร์กชีตเดือนที่มีค่าใช้จ่าย
A13: ตัวอย่างเช่น: "ค่าใช้จ่าย 1" เกิดขึ้นในเดือนมกราคมถึงเดือนมิถุนายนและเดือนธันวาคม
A14: =ROW(A1)&". รายจ่าย 1 ถูกใส่ในเวิร์กชีตผลสรุปภายใต้รายจ่ายในตาราง สรุปรายจ่าย (เป็นชื่อเรื่องสำหรับประเภทรายจ่าย)" -> 1. รายจ่าย 1 ถูกใส่ในเวิร์กชีตผลสรุปภายใต้รายจ่ายในตาราง สรุปรายจ่าย (เป็นชื่อเรื่องสำหรับประเภทรายจ่าย)
A15: =ROW(A2)&". สำหรับรายจ่ายที่เกิดขึ้นในแต่ละเดือน ให้ใส่จำนวนสำหรับรายจ่ายในเวิร์กชีตของเดือนที่สอดคล้องกัน" -> 2. สำหรับรายจ่ายที่เกิดขึ้นในแต่ละเดือน ให้ใส่จำนวนสำหรับรายจ่ายในเวิร์กชีตของเดือนที่สอดคล้องกัน
A16: =ROW(A3)&". ชนิดรายจ่ายจากเวิร์กชีตสรุปรายจ่ายจะสร้างรายการประเภทสำหรับคอลัมน์ประเภทในเวิร์กชีตของแต่ละเดือน" -> 3. ชนิดรายจ่ายจากเวิร์กชีตสรุปรายจ่ายจะสร้างรายการประเภทสำหรับคอลัมน์ประเภทในเวิร์กชีตของแต่ละเดือน
A17: =ROW(A4)&". ใช้รายการประเภทในคอลัมน์ประเภทเพื่อเลือกประเภทรายจ่ายที่สอดคล้องกันสำหรับจำนวนรายจ่ายที่ใส่" -> 4. ใช้รายการประเภทในคอลัมน์ประเภทเพื่อเลือกประเภทรายจ่ายที่สอดคล้องกันสำหรับจำนวนรายจ่ายที่ใส่
A18: =ROW(A5)&". เมื่อต้องการเพิ่มรายจ่ายสำหรับเดือนใดๆ ให้เพิ่มแถวใหม่ลงในตารางสรุปรายจ่ายในเวิร์กชีตบทสรุป จากนั้นใส่รายละเอียดรายจ่ายที่สอดคล้องกันในเวิร์กชีตของเดือนที่เกิดรายจ่าย" -> 5. เมื่อต้องการเพิ่มรายจ่ายสำหรับเดือนใดๆ ให้เพิ่มแถวใหม่ลงในตารางสรุปรายจ่ายในเวิร์กชีตบทสรุป จากนั้นใส่รายละเอียดรายจ่ายที่สอดคล้องกันในเวิร์กชีตของเดือนที่เกิดรายจ่าย

Sheet สรุป
A1: แนวโน้มค่าใช้จ่าย
B2: ม.ค. | C2: ก.พ. | D2: มี.ค. | E2: เม.ย. | F2: พ.ค. | G2: มิ.ย. | H2: ก.ค. | I2: ส.ค. | J2: ก.ย. | K2: ต.ค. | L2: พ.ย. | M2: ธ.ค. | N2: เคล็ดลับ
A4: รายจ่าย | B4: ม.ค. | C4: ก.พ. | D4: มี.ค. | E4: เม.ย. | F4: พ.ค. | G4: มิ.ย. | H4: ก.ค. | I4: ส.ค. | J4: ก.ย. | K4: ต.ค. | L4: พ.ย. | M4: ธ.ค. | N4: ผลรวม | O4: แนวโน้ม
A5: ค่าใช้จ่าย 1 | B5: =SUMIFS(ค่าใช้จ่ายเดือนมกราคม[จำนวนเงิน],ค่าใช้จ่ายเดือนมกราคม[ประเภท],สรุปค่าใช้จ่าย[รายจ่าย]) -> 33.00 | C5: =SUMIFS(ค่าใช้จ่ายเดือนกุมภาพันธ์[จำนวนเงิน],ค่าใช้จ่ายเดือนกุมภาพันธ์[ประเภท],สรุปค่าใช้จ่าย[รายจ่าย]) -> 375.00 | D5: =SUMIFS(ค่าใช้จ่ายเดือนมีนาคม[จำนวนเงิน],ค่าใช้จ่ายเดือนมีนาคม[ประเภท],สรุปค่าใช้จ่าย[รายจ่าย]) -> 33.00 | E5: =SUMIFS(ค่าใช้จ่ายเดือนเมษายน[จำนวนเงิน],ค่าใช้จ่ายเดือนเมษายน[ประเภท],สรุปค่าใช้จ่าย[รายจ่าย]) -> 45.00 | F5: =SUMIFS(ค่าใช้จ่ายเดือนพฤษภาคม[จำนวนเงิน],ค่าใช้จ่ายเดือนพฤษภาคม[ประเภท],สรุปค่าใช้จ่าย[รายจ่าย]) -> 375.00 | G5: =SUMIFS(ค่าใช้จ่ายเดือนมิถุนายน[จำนวนเงิน],ค่าใช้จ่ายเดือนมิถุนายน[ประเภท],สรุปค่าใช้จ่าย[รายจ่าย]) -> 201.00 | H5: =SUMIFS(ค่าใช้จ่ายเดือนกรกฎาคม[จำนวนเงิน],ค่าใช้จ่ายเดือนกรกฎาคม[ประเภท],สรุปค่าใช้จ่าย[รายจ่าย]) -> 0.00 | I5: =SUMIFS(ค่าใช้จ่ายเดือนสิงหาคม[จำนวนเงิน],ค่าใช้จ่ายเดือนสิงหาคม[ประเภท],สรุปค่าใช้จ่าย[รายจ่าย]) -> 0.00 | J5: =SUMIFS(ค่าใช้จ่ายเดือนกรกฎาคม[จำนวนเงิน],ค่าใช้จ่ายเดือนกรกฎาคม[ประเภท],สรุปค่าใช้จ่าย[รายจ่าย]) -> 0.00 | K5: =SUMIFS(ค่าใช้จ่ายเดือนตุลาคม[จำนวนเงิน],ค่าใช้จ่ายเดือนตุลาคม[ประเภท],สรุปค่าใช้จ่าย[รายจ่าย]) -> 0.00 | L5: =SUMIFS(ค่าใช้จ่ายเดือนพฤศจิกายน[จำนวนเงิน],ค่าใช้จ่ายเดือนพฤศจิกายน[ประเภท],สรุปค่าใช้จ่าย[รายจ่าย]) -> 0.00 | M5: =SUMIFS(ค่าใช้จ่ายเดือนธันวาคม[จำนวนเงิน],ค่าใช้จ่ายเดือนธันวาคม[ประเภท],สรุปค่าใช้จ่าย[รายจ่าย]) -> 201.00 | N5: =SUM(สรุปค่าใช้จ่าย[[#This Row],[ม.ค.]:[ธ.ค.]]) -> 1,263.00
A6: ค่าใช้จ่าย 2 | B6: =SUMIFS(ค่าใช้จ่ายเดือนมกราคม[จำนวนเงิน],ค่าใช้จ่ายเดือนมกราคม[ประเภท],สรุปค่าใช้จ่าย[รายจ่าย]) -> 238.00 | C6: =SUMIFS(ค่าใช้จ่ายเดือนกุมภาพันธ์[จำนวนเงิน],ค่าใช้จ่ายเดือนกุมภาพันธ์[ประเภท],สรุปค่าใช้จ่าย[รายจ่าย]) -> 238.00 | D6: =SUMIFS(ค่าใช้จ่ายเดือนมีนาคม[จำนวนเงิน],ค่าใช้จ่ายเดือนมีนาคม[ประเภท],สรุปค่าใช้จ่าย[รายจ่าย]) -> 238.00 | E6: =SUMIFS(ค่าใช้จ่ายเดือนเมษายน[จำนวนเงิน],ค่าใช้จ่ายเดือนเมษายน[ประเภท],สรุปค่าใช้จ่าย[รายจ่าย]) -> 123.00 | F6: =SUMIFS(ค่าใช้จ่ายเดือนพฤษภาคม[จำนวนเงิน],ค่าใช้จ่ายเดือนพฤษภาคม[ประเภท],สรุปค่าใช้จ่าย[รายจ่าย]) -> 111.00 | G6: =SUMIFS(ค่าใช้จ่ายเดือนมิถุนายน[จำนวนเงิน],ค่าใช้จ่ายเดือนมิถุนายน[ประเภท],สรุปค่าใช้จ่าย[รายจ่าย]) -> 98.00 | H6: =SUMIFS(ค่าใช้จ่ายเดือนกรกฎาคม[จำนวนเงิน],ค่าใช้จ่ายเดือนกรกฎาคม[ประเภท],สรุปค่าใช้จ่าย[รายจ่าย]) -> 0.00 | I6: =SUMIFS(ค่าใช้จ่ายเดือนสิงหาคม[จำนวนเงิน],ค่าใช้จ่ายเดือนสิงหาคม[ประเภท],สรุปค่าใช้จ่าย[รายจ่าย]) -> 0.00 | J6: =SUMIFS(ค่าใช้จ่ายเดือนกรกฎาคม[จำนวนเงิน],ค่าใช้จ่ายเดือนกรกฎาคม[ประเภท],สรุปค่าใช้จ่าย[รายจ่าย]) -> 0.00 | K6: =SUMIFS(ค่าใช้จ่ายเดือนตุลาคม[จำนวนเงิน],ค่าใช้จ่ายเดือนตุลาคม[ประเภท],สรุปค่าใช้จ่าย[รายจ่าย]) -> 0.00 | L6: =SUMIFS(ค่าใช้จ่ายเดือนพฤศจิกายน[จำนวนเงิน],ค่าใช้จ่ายเดือนพฤศจิกายน[ประเภท],สรุปค่าใช้จ่าย[รายจ่าย]) -> 0.00 | M6: =SUMIFS(ค่าใช้จ่ายเดือนธันวาคม[จำนวนเงิน],ค่าใช้จ่ายเดือนธันวาคม[ประเภท],สรุปค่าใช้จ่าย[รายจ่าย]) -> 440.00 | N6: =SUM(สรุปค่าใช้จ่าย[[#This Row],[ม.ค.]:[ธ.ค.]]) -> 1,486.00
A7: ค่าใช้จ่าย 3 | B7: =SUMIFS(ค่าใช้จ่ายเดือนมกราคม[จำนวนเงิน],ค่าใช้จ่ายเดือนมกราคม[ประเภท],สรุปค่าใช้จ่าย[รายจ่าย]) -> 110.00 | C7: =SUMIFS(ค่าใช้จ่ายเดือนกุมภาพันธ์[จำนวนเงิน],ค่าใช้จ่ายเดือนกุมภาพันธ์[ประเภท],สรุปค่าใช้จ่าย[รายจ่าย]) -> 110.00 | D7: =SUMIFS(ค่าใช้จ่ายเดือนมีนาคม[จำนวนเงิน],ค่าใช้จ่ายเดือนมีนาคม[ประเภท],สรุปค่าใช้จ่าย[รายจ่าย]) -> 110.00 | E7: =SUMIFS(ค่าใช้จ่ายเดือนเมษายน[จำนวนเงิน],ค่าใช้จ่ายเดือนเมษายน[ประเภท],สรุปค่าใช้จ่าย[รายจ่าย]) -> 125.00 | F7: =SUMIFS(ค่าใช้จ่ายเดือนพฤษภาคม[จำนวนเงิน],ค่าใช้จ่ายเดือนพฤษภาคม[ประเภท],สรุปค่าใช้จ่าย[รายจ่าย]) -> 333.00 | G7: =SUMIFS(ค่าใช้จ่ายเดือนมิถุนายน[จำนวนเงิน],ค่าใช้จ่ายเดือนมิถุนายน[ประเภท],สรุปค่าใช้จ่าย[รายจ่าย]) -> 122.00 | H7: =SUMIFS(ค่าใช้จ่ายเดือนกรกฎาคม[จำนวนเงิน],ค่าใช้จ่ายเดือนกรกฎาคม[ประเภท],สรุปค่าใช้จ่าย[รายจ่าย]) -> 0.00 | I7: =SUMIFS(ค่าใช้จ่ายเดือนสิงหาคม[จำนวนเงิน],ค่าใช้จ่ายเดือนสิงหาคม[ประเภท],สรุปค่าใช้จ่าย[รายจ่าย]) -> 0.00 | J7: =SUMIFS(ค่าใช้จ่ายเดือนกรกฎาคม[จำนวนเงิน],ค่าใช้จ่ายเดือนกรกฎาคม[ประเภท],สรุปค่าใช้จ่าย[รายจ่าย]) -> 0.00 | K7: =SUMIFS(ค่าใช้จ่ายเดือนตุลาคม[จำนวนเงิน],ค่าใช้จ่ายเดือนตุลาคม[ประเภท],สรุปค่าใช้จ่าย[รายจ่าย]) -> 0.00 | L7: =SUMIFS(ค่าใช้จ่ายเดือนพฤศจิกายน[จำนวนเงิน],ค่าใช้จ่ายเดือนพฤศจิกายน[ประเภท],สรุปค่าใช้จ่าย[รายจ่าย]) -> 0.00 | M7: =SUMIFS(ค่าใช้จ่ายเดือนธันวาคม[จำนวนเงิน],ค่าใช้จ่ายเดือนธันวาคม[ประเภท],สรุปค่าใช้จ่าย[รายจ่าย]) -> 122.00 | N7: =SUM(สรุปค่าใช้จ่าย[[#This Row],[ม.ค.]:[ธ.ค.]]) -> 1,032.00
A8: ค่าใช้จ่าย 4 | B8: =SUMIFS(ค่าใช้จ่ายเดือนมกราคม[จำนวนเงิน],ค่าใช้จ่ายเดือนมกราคม[ประเภท],สรุปค่าใช้จ่าย[รายจ่าย]) -> 426.00 | C8: =SUMIFS(ค่าใช้จ่ายเดือนกุมภาพันธ์[จำนวนเงิน],ค่าใช้จ่ายเดือนกุมภาพันธ์[ประเภท],สรุปค่าใช้จ่าย[รายจ่าย]) -> 84.00 | D8: =SUMIFS(ค่าใช้จ่ายเดือนมีนาคม[จำนวนเงิน],ค่าใช้จ่ายเดือนมีนาคม[ประเภท],สรุปค่าใช้จ่าย[รายจ่าย]) -> 84.00 | E8: =SUMIFS(ค่าใช้จ่ายเดือนเมษายน[จำนวนเงิน],ค่าใช้จ่ายเดือนเมษายน[ประเภท],สรุปค่าใช้จ่าย[รายจ่าย]) -> 426.00 | F8: =SUMIFS(ค่าใช้จ่ายเดือนพฤษภาคม[จำนวนเงิน],ค่าใช้จ่ายเดือนพฤษภาคม[ประเภท],สรุปค่าใช้จ่าย[รายจ่าย]) -> 125.00 | G8: =SUMIFS(ค่าใช้จ่ายเดือนมิถุนายน[จำนวนเงิน],ค่าใช้จ่ายเดือนมิถุนายน[ประเภท],สรุปค่าใช้จ่าย[รายจ่าย]) -> 187.00 | H8: =SUMIFS(ค่าใช้จ่ายเดือนกรกฎาคม[จำนวนเงิน],ค่าใช้จ่ายเดือนกรกฎาคม[ประเภท],สรุปค่าใช้จ่าย[รายจ่าย]) -> 0.00 | I8: =SUMIFS(ค่าใช้จ่ายเดือนสิงหาคม[จำนวนเงิน],ค่าใช้จ่ายเดือนสิงหาคม[ประเภท],สรุปค่าใช้จ่าย[รายจ่าย]) -> 0.00 | J8: =SUMIFS(ค่าใช้จ่ายเดือนกรกฎาคม[จำนวนเงิน],ค่าใช้จ่ายเดือนกรกฎาคม[ประเภท],สรุปค่าใช้จ่าย[รายจ่าย]) -> 0.00 | K8: =SUMIFS(ค่าใช้จ่ายเดือนตุลาคม[จำนวนเงิน],ค่าใช้จ่ายเดือนตุลาคม[ประเภท],สรุปค่าใช้จ่าย[รายจ่าย]) -> 0.00 | L8: =SUMIFS(ค่าใช้จ่ายเดือนพฤศจิกายน[จำนวนเงิน],ค่าใช้จ่ายเดือนพฤศจิกายน[ประเภท],สรุปค่าใช้จ่าย[รายจ่าย]) -> 0.00 | M8: =SUMIFS(ค่าใช้จ่ายเดือนธันวาคม[จำนวนเงิน],ค่าใช้จ่ายเดือนธันวาคม[ประเภท],สรุปค่าใช้จ่าย[รายจ่าย]) -> 187.00 | N8: =SUM(สรุปค่าใช้จ่าย[[#This Row],[ม.ค.]:[ธ.ค.]]) -> 1,519.00
A9: ค่าใช้จ่าย 5 | B9: =SUMIFS(ค่าใช้จ่ายเดือนมกราคม[จำนวนเงิน],ค่าใช้จ่ายเดือนมกราคม[ประเภท],สรุปค่าใช้จ่าย[รายจ่าย]) -> 54.00 | C9: =SUMIFS(ค่าใช้จ่ายเดือนกุมภาพันธ์[จำนวนเงิน],ค่าใช้จ่ายเดือนกุมภาพันธ์[ประเภท],สรุปค่าใช้จ่าย[รายจ่าย]) -> 54.00 | D9: =SUMIFS(ค่าใช้จ่ายเดือนมีนาคม[จำนวนเงิน],ค่าใช้จ่ายเดือนมีนาคม[ประเภท],สรุปค่าใช้จ่าย[รายจ่าย]) -> 109.00 | E9: =SUMIFS(ค่าใช้จ่ายเดือนเมษายน[จำนวนเงิน],ค่าใช้จ่ายเดือนเมษายน[ประเภท],สรุปค่าใช้จ่าย[รายจ่าย]) -> 98.00 | F9: =SUMIFS(ค่าใช้จ่ายเดือนพฤษภาคม[จำนวนเงิน],ค่าใช้จ่ายเดือนพฤษภาคม[ประเภท],สรุปค่าใช้จ่าย[รายจ่าย]) -> 33.00 | G9: =SUMIFS(ค่าใช้จ่ายเดือนมิถุนายน[จำนวนเงิน],ค่าใช้จ่ายเดือนมิถุนายน[ประเภท],สรุปค่าใช้จ่าย[รายจ่าย]) -> 441.00 | H9: =SUMIFS(ค่าใช้จ่ายเดือนกรกฎาคม[จำนวนเงิน],ค่าใช้จ่ายเดือนกรกฎาคม[ประเภท],สรุปค่าใช้จ่าย[รายจ่าย]) -> 0.00 | I9: =SUMIFS(ค่าใช้จ่ายเดือนสิงหาคม[จำนวนเงิน],ค่าใช้จ่ายเดือนสิงหาคม[ประเภท],สรุปค่าใช้จ่าย[รายจ่าย]) -> 0.00 | J9: =SUMIFS(ค่าใช้จ่ายเดือนกรกฎาคม[จำนวนเงิน],ค่าใช้จ่ายเดือนกรกฎาคม[ประเภท],สรุปค่าใช้จ่าย[รายจ่าย]) -> 0.00 | K9: =SUMIFS(ค่าใช้จ่ายเดือนตุลาคม[จำนวนเงิน],ค่าใช้จ่ายเดือนตุลาคม[ประเภท],สรุปค่าใช้จ่าย[รายจ่าย]) -> 0.00 | L9: =SUMIFS(ค่าใช้จ่ายเดือนพฤศจิกายน[จำนวนเงิน],ค่าใช้จ่ายเดือนพฤศจิกายน[ประเภท],สรุปค่าใช้จ่าย[รายจ่าย]) -> 0.00 | M9: =SUMIFS(ค่าใช้จ่ายเดือนธันวาคม[จำนวนเงิน],ค่าใช้จ่ายเดือนธันวาคม[ประเภท],สรุปค่าใช้จ่าย[รายจ่าย]) -> 99.00 | N9: =SUM(สรุปค่าใช้จ่าย[[#This Row],[ม.ค.]:[ธ.ค.]]) -> 888.00
A10: ผลรวม | B10: =SUBTOTAL(109,สรุปค่าใช้จ่าย[ม.ค.]) -> 861.00 | C10: =SUBTOTAL(109,สรุปค่าใช้จ่าย[ก.พ.]) -> 861.00 | D10: =SUBTOTAL(109,สรุปค่าใช้จ่าย[มี.ค.]) -> 574.00 | E10: =SUBTOTAL(109,สรุปค่าใช้จ่าย[เม.ย.]) -> 817.00 | F10: =SUBTOTAL(109,สรุปค่าใช้จ่าย[พ.ค.]) -> 977.00 | G10: =SUBTOTAL(109,สรุปค่าใช้จ่าย[มิ.ย.]) -> 1,049.00 | H10: =SUBTOTAL(109,สรุปค่าใช้จ่าย[ก.ค.]) -> 0.00 | I10: =SUBTOTAL(109,สรุปค่าใช้จ่าย[ส.ค.]) -> 0.00 | J10: =SUBTOTAL(109,สรุปค่าใช้จ่าย[ก.ย.]) -> 0.00 | K10: =SUBTOTAL(109,สรุปค่าใช้จ่าย[ต.ค.]) -> 0.00 | L10: =SUBTOTAL(109,สรุปค่าใช้จ่าย[พ.ย.]) -> 0.00 | M10: =SUBTOTAL(109,สรุปค่าใช้จ่าย[ธ.ค.]) -> 1,049.00 | N10: =SUBTOTAL(109,สรุปค่าใช้จ่าย[ผลรวม]) -> 6,188.00

Sheet ม.ค.
A1: ค่าใช้จ่ายเดือนมกราคม | D1: สรุป | E1: เคล็ดลับ
A2: วันที่ | B2: PO# | C2: จำนวนเงิน | D2: ประเภท | E2: คำอธิบาย
A3: =DATE(YEAR(TODAY()),1,4) -> 2016-01-04 | B3: A-12345 | C3: 33.00 | D3: ค่าใช้จ่าย 1 | E3: สินค้า
A4: =DATE(YEAR(TODAY()),1,5) -> 2016-01-05 | B4: A-12346 | C4: 238.00 | D4: ค่าใช้จ่าย 2
C5: 342.00 | D5: ค่าใช้จ่าย 4
C6: 110.00 | D6: ค่าใช้จ่าย 3
C7: 84.00 | D7: ค่าใช้จ่าย 4
C8: 54.00 | D8: ค่าใช้จ่าย 5
A9: ผลรวม | C9: =SUBTOTAL(109,ค่าใช้จ่ายเดือนมกราคม[จำนวนเงิน]) -> 861.00

Sheet ก.พ.
A1: ค่าใช้จ่ายเดือนกุมภาพันธ์ | D1: สรุป | E1: เคล็ดลับ
A2: วันที่ | B2: PO# | C2: จำนวนเงิน | D2: ประเภท | E2: คำอธิบาย
A3: =DATE(YEAR(TODAY()),2,3) -> 2016-02-03 | B3: A-12345 | C3: 33.00 | D3: ค่าใช้จ่าย 1 | E3: สินค้า
A4: =DATE(YEAR(TODAY()),2,4) -> 2016-02-04 | B4: A-12346 | C4: 238.00 | D4: ค่าใช้จ่าย 2
C5: 342.00 | D5: ค่าใช้จ่าย 1
C6: 110.00 | D6: ค่าใช้จ่าย 3
C7: 84.00 | D7: ค่าใช้จ่าย 4
C8: 54.00 | D8: ค่าใช้จ่าย 5
A9: ผลรวม | C9: =SUBTOTAL(109,ค่าใช้จ่ายเดือนกุมภาพันธ์[จำนวนเงิน]) -> 861.00

Sheet มี.ค.
A1: ค่าใช้จ่ายเดือนมีนาคม | D1: สรุป | E1: เคล็ดลับ
A2: วันที่ | B2: PO# | C2: จำนวนเงิน | D2: ประเภท | E2: คำอธิบาย
A3: =DATE(YEAR(TODAY()),3,5) -> 2016-03-05 | B3: A-12345 | C3: 33.00 | D3: ค่าใช้จ่าย 1 | E3: สินค้า
A4: =DATE(YEAR(TODAY()),3,6) -> 2016-03-06 | B4: A-12346 | C4: 238.00 | D4: ค่าใช้จ่าย 2
C5: 55.00 | D5: ค่าใช้จ่าย 5
C6: 110.00 | D6: ค่าใช้จ่าย 3
C7: 84.00 | D7: ค่าใช้จ่าย 4
C8: 54.00 | D8: ค่าใช้จ่าย 5
A9: ผลรวม | C9: =SUBTOTAL(109,ค่าใช้จ่ายเดือนมีนาคม[จำนวนเงิน]) -> 574.00

Sheet เม.ย.
A1: ค่าใช้จ่ายเดือนเมษายน | D1: สรุป | E1: เคล็ดลับ
A2: วันที่ | B2: PO# | C2: จำนวนเงิน | D2: ประเภท | E2: คำอธิบาย
A3: =DATE(YEAR(TODAY()),4,4) -> 2016-04-04 | B3: A-12345 | C3: 45.00 | D3: ค่าใช้จ่าย 1 | E3: สินค้า
A4: =DATE(YEAR(TODAY()),4,8) -> 2016-04-08 | B4: A-12346 | C4: 123.00 | D4: ค่าใช้จ่าย 2
C5: 342.00 | D5: ค่าใช้จ่าย 4
C6: 125.00 | D6: ค่าใช้จ่าย 3
C7: 84.00 | D7: ค่าใช้จ่าย 4
C8: 98.00 | D8: ค่าใช้จ่าย 5
A9: ผลรวม | C9: =SUBTOTAL(109,ค่าใช้จ่ายเดือนเมษายน[จำนวนเงิน]) -> 817.00

Sheet พ.ค.
A1: ค่าใช้จ่ายเดือนพฤษภาคม | D1: สรุป | E1: เคล็ดลับ
A2: วันที่ | B2: PO# | C2: จำนวนเงิน | D2: ประเภท | E2: คำอธิบาย
A3: =DATE(YEAR(TODAY()),5,3) -> 2016-05-03 | B3: A-12345 | C3: 33.00 | D3: ค่าใช้จ่าย 1 | E3: สินค้า
A4: =DATE(YEAR(TODAY()),5,8) -> 2016-05-08 | B4: A-12346 | C4: 111.00 | D4: ค่าใช้จ่าย 2
C5: 342.00 | D5: ค่าใช้จ่าย 1
C6: 333.00 | D6: ค่าใช้จ่าย 3
C7: 125.00 | D7: ค่าใช้จ่าย 4
C8: 33.00 | D8: ค่าใช้จ่าย 5
A9: ผลรวม | C9: =SUBTOTAL(109,ค่าใช้จ่ายเดือนพฤษภาคม[จำนวนเงิน]) -> 977.00

Sheet มิ.ย.
A1: ค่าใช้จ่ายเดือนมิถุนายน | D1: สรุป | E1: เคล็ดลับ
A2: วันที่ | B2: PO# | C2: จำนวนเงิน | D2: ประเภท | E2: คำอธิบาย
A3: =DATE(YEAR(TODAY()),6,7) -> 2016-06-07 | B3: A-12345 | C3: 201.00 | D3: ค่าใช้จ่าย 1 | E3: สินค้า
A4: =DATE(YEAR(TODAY()),6,8) -> 2016-06-08 | B4: A-12346 | C4: 98.00 | D4: ค่าใช้จ่าย 2
C5: 342.00 | D5: ค่าใช้จ่าย 5
C6: 122.00 | D6: ค่าใช้จ่าย 3
C7: 187.00 | D7: ค่าใช้จ่าย 4
C8: 99.00 | D8: ค่าใช้จ่าย 5
A9: ผลรวม | C9: =SUBTOTAL(109,ค่าใช้จ่ายเดือนมิถุนายน[จำนวนเงิน]) -> 1,049.00

Sheet ก.ค.
A1: ค่าใช้จ่ายเดือนกรกฎาคม | D1: สรุป | E1: เคล็ดลับ
A2: วันที่ | B2: PO# | C2: จำนวนเงิน | D2: ประเภท | E2: คำอธิบาย
A3: =DATE(YEAR(TODAY()),7,9) -> 2016-07-09 | B3: A-12345 | D3: ค่าใช้จ่าย 1 | E3: สินค้า
A4: =DATE(YEAR(TODAY()),7,14) -> 2016-07-14 | B4: A-12346 | D4: ค่าใช้จ่าย 2
D5: ค่าใช้จ่าย 2
D6: ค่าใช้จ่าย 3
D7: ค่าใช้จ่าย 4
D8: ค่าใช้จ่าย 5
A9: ผลรวม | C9: =SUBTOTAL(109,ค่าใช้จ่ายเดือนกรกฎาคม[จำนวนเงิน]) -> 0.00

Sheet ส.ค.
A1: ค่าใช้จ่ายเดือนสิงหาคม | D1: สรุป | E1: เคล็ดลับ
A2: วันที่ | B2: PO# | C2: จำนวนเงิน | D2: ประเภท | E2: คำอธิบาย
A3: =DATE(YEAR(TODAY()),8,8) -> 2016-08-08 | B3: A-12345 | D3: ค่าใช้จ่าย 1 | E3: สินค้า
A4: =DATE(YEAR(TODAY()),8,9) -> 2016-08-09 | B4: A-12346 | D4: ค่าใช้จ่าย 2
D5: ค่าใช้จ่าย 2
D6: ค่าใช้จ่าย 3
D7: ค่าใช้จ่าย 4
D8: ค่าใช้จ่าย 5
A9: ผลรวม | C9: =SUBTOTAL(109,ค่าใช้จ่ายเดือนสิงหาคม[จำนวนเงิน]) -> 0.00

Sheet ก.ย.
A1: ค่าใช้จ่ายเดือนกันยายน | D1: สรุป | E1: เคล็ดลับ
A2: วันที่ | B2: PO# | C2: จำนวนเงิน | D2: ประเภท | E2: คำอธิบาย
A3: =DATE(YEAR(TODAY()),9,9) -> 2016-09-09 | B3: A-12345 | D3: ค่าใช้จ่าย 1 | E3: สินค้า
A4: =DATE(YEAR(TODAY()),9,15) -> 2016-09-15 | B4: A-12346 | D4: ค่าใช้จ่าย 2
D5: ค่าใช้จ่าย 2
D6: ค่าใช้จ่าย 3
D7: ค่าใช้จ่าย 4
D8: ค่าใช้จ่าย 5
A9: ผลรวม | C9: =SUBTOTAL(109,ค่าใช้จ่ายเดือนกันยายน[จำนวนเงิน]) -> 0.00

Sheet ต.ค.
A1: ค่าใช้จ่ายเดือนตุลาคม | D1: สรุป | E1: เคล็ดลับ
A2: วันที่ | B2: PO# | C2: จำนวนเงิน | D2: ประเภท | E2: คำอธิบาย
A3: =DATE(YEAR(TODAY()),10,10) -> 2016-10-10 | B3: A-12345 | D3: ค่าใช้จ่าย 1 | E3: สินค้า
A4: =DATE(YEAR(TODAY()),10,21) -> 2016-10-21 | B4: A-12346 | D4: ค่าใช้จ่าย 2
D5: ค่าใช้จ่าย 2
D6: ค่าใช้จ่าย 3
D7: ค่าใช้จ่าย 4
D8: ค่าใช้จ่าย 5
A9: ผลรวม | C9: =SUBTOTAL(109,ค่าใช้จ่ายเดือนตุลาคม[จำนวนเงิน]) -> 0.00

Sheet พ.ย.
A1: ค่าใช้จ่ายเดือนพฤศจิกายน | D1: สรุป | E1: เคล็ดลับ
A2: วันที่ | B2: PO# | C2: จำนวนเงิน | D2: ประเภท | E2: คำอธิบาย
A3: =DATE(YEAR(TODAY()),11,14) -> 2016-11-14 | B3: A-12345 | D3: ค่าใช้จ่าย 1 | E3: สินค้า
A4: =DATE(YEAR(TODAY()),11,21) -> 2016-11-21 | B4: A-12346 | D4: ค่าใช้จ่าย 2
D5: ค่าใช้จ่าย 2
D6: ค่าใช้จ่าย 3
D7: ค่าใช้จ่าย 4
D8: ค่าใช้จ่าย 5
A9: ผลรวม | C9: =SUBTOTAL(109,ค่าใช้จ่ายเดือนพฤศจิกายน[จำนวนเงิน]) -> 0.00

Sheet ธ.ค.
A1: ค่าใช้จ่ายเดือนธันวาคม | D1: สรุป | E1: เคล็ดลับ
A2: วันที่ | B2: PO# | C2: จำนวนเงิน | D2: ประเภท | E2: คำอธิบาย
A3: =DATE(YEAR(TODAY()),12,2) -> 2016-12-02 | B3: A-12345 | C3: 201.00 | D3: ค่าใช้จ่าย 1 | E3: สินค้า
A4: =DATE(YEAR(TODAY()),12,24) -> 2016-12-24 | B4: A-12346 | C4: 98.00 | D4: ค่าใช้จ่าย 2
C5: 342.00 | D5: ค่าใช้จ่าย 2
C6: 122.00 | D6: ค่าใช้จ่าย 3
C7: 187.00 | D7: ค่าใช้จ่าย 4
C8: 99.00 | D8: ค่าใช้จ่าย 5
A9: ผลรวม | C9: =SUBTOTAL(109,ค่าใช้จ่ายเดือนธันวาคม[จำนวนเงิน]) -> 1,049.00
